[Event "67th Mexican-ch Open 2022"]
[Site "Chihuahua"]
[Date "2022.04.14"]
[Round "2.25"]
[White "Corrales Jimenez, Zenia"]
[Black "Diaz Osorio, Ana Carolina"]
[Result "1-0"]
[ECO "C45"]
[WhiteElo "2151"]
[BlackElo "1627"]
[Annotator "TA"]
[PlyCount "125"]
[EventDate "2022.04.12"]
[EventType "swiss"]
[EventCountry "MEX"]
[SourceTitle "playchess.com"]
[Source "ChessBase"]
[SourceQuality "1"]
[TimeControl "5400+30"]

{[%evp 9,125,7,21,-37,15,20,27,-21,75,78,85,52,80,0,12,-14,-26,-46,-38,-70,-48,-51,-51,-82,-16,-247,-152,-193,-176,-254,-253,-691,-643,-631,-603,-546,-382,-426,-429,-414,-367,-373,-209,-845,-798,-1230,-1223,-29962,-29965,-6507,-6507,-29995,-29996,-29996,-1678,-1508,-1512,-1438,-1454,-1048,-288,-290,-293,-282,-279,-309,-229,-239,-170,-171,-169,-177,-177,-225,-123,-123,-123,-121,-104,-106,-18,-17,0,-119,-96,-96,-72,-83,-83,-126,0,0,0,0,0,0,0,0,0,0,0,0,0,0,0,0,0,0,0,0,0,0,8,8,29981,29981,29990,29991]} 1. e4 {[%emt 0:00:04]} e5 {[%emt 0:00:07]} 2. Nf3 {[%emt 0:00:09]} Nc6 {[%emt 0:00:28]} 3. d4 {[%emt 0:00:21]} exd4 {[%emt 0:00:09]} 4. Nxd4 {[%emt 0:00:05]} Nf6 {[%emt 0:00:37]} 5. Nxc6 {[%emt 0:00:35]} bxc6 {[%emt 0:00:33]} 6. Qe2 {[%emt 0:00:20] C45: Scotch Game.} (6. Bd3 $11) 6... Be7 {[%emt 0:02:42]} (6... Rb8 $15) 7. e5 $1 $11 {[%emt 0:06:38]} Nd5 {[%emt 0:00:21]} 8. Qg4 {[%emt 0:02:59] [#]} (8. c4 $142 $1 Nb6 9. Qg4) 8... Rg8 $146 {[%emt 0:12:19]} (8... g6 $11 {remains equal.}) ({Predecessor:} 8... g6 9. c4 Nb6 10. Bh6 d5 11. Qf3 Bg5 12. Bg7 Rg8 13. Bf6 Bxf6 14. exf6 Be6 {1-0 (27) Vallejo Pons,F (2706)-Jakovenko,D (2713) Khanty-Mansiysk 2013}) 9. Bd3 {[%emt 0:12:32]} d6 {[%emt 0:23:07]} 10. Qc4 {[%emt 0:03:51] &Bianco is more active.} Bb7 {[%emt 0:04:38]} 11. e6 {[%emt 0:03:54]} ({Reject} 11. Bxh7 $6 Rh8 12. Be4 dxe5 $15) (11. Qb3 $16 Rb8 12. exd6 cxd6 13. O-O) 11... fxe6 {[%emt 0:05:04]} 12. Bxh7 {[%emt 0:02:15]} Rh8 {[%emt 0:06:30]} 13. Bg6+ {[%emt 0:02:52]} Kd7 {[%emt 0:00:14] Hoping for ...Rh4.} 14. Nd2 {[%emt 0:01:29]} Rh4 {[%emt 0:02:25]} 15. Qb3 {[%emt 0:01:32]} Rb8 $36 {[%emt 0:04:09][%mdl 2048] White is under pressure.} 16. c4 {[%emt 0:00:36]} Ba6 {[%emt 0:06:37]} (16... Nf4 $17 17. Be4 d5) 17. Qd3 {[%emt 0:13:24]} (17. Qf3 $11 {and White stays safe.}) 17... Qh8 {[%emt 0:06:08]} 18. g3 {[%emt 0:28:18]} Rxh2 {[%emt 0:01:32]} 19. Rxh2 {[%emt 0:00:03]} (19. Rf1 {was called for.}) 19... Qxh2 $19 {[%emt 0:00:12]} 20. Qd4 $2 {[%emt 0:05:50]} (20. Nf1 Qh3 21. a3) 20... Qg1+ {[%emt 0:03:38]} 21. Ke2 {[%emt 0:00:42]} Rf8 {[%emt 0:04:26] Threatens to win with ...c5.} 22. Nf3 {[%emt 0:06:45]} Qh1 {[%emt 0:02:21]} 23. Be4 {[%emt 0:00:52]} Bf6 {[%emt 0:03:57]} 24. Qd3 {[%emt 0:01:21][%cal Of3e5] Ne5+! is the strong threat.} Nb4 {[%emt 0:00:15]} 25. Qb3 {[%emt 0:00:29][%cal Of3e5] [#] And now Ne5+! would win.} d5 {[%emt 0:03:05]} (25... Qh5 $142 $1 26. Qxb4 (26. Ke1 c5) 26... d5 $1 {[%mdl 512]}) 26. Qxb4 $2 {[%emt 0:02:45] [#]} (26. Ne5+ Bxe5 27. Bxh1 Bxc4+ 28. Qxc4 dxc4 29. Bd2) 26... dxe4 $1 {[%emt 0:00:13]} 27. Nd2 {[%emt 0:02:21]} (27. Nh2 Qxh2) 27... Be7 {[%emt 0:02:29]} 28. Qa5 {[%emt 0:00:09] [#]} Bxc4+ $1 {[%emt 0:03:24][%mdl 512]} 29. Nxc4 {[%emt 0:00:56]} Qf3+ {[%emt 0:00:04]} 30. Ke1 {[%emt 0:00:03]} Qxf2+ {[%emt 0:00:22]} 31. Kd1 {[%emt 0:00:01]} Qf1+ {[%emt 0:00:43]} (31... Qf3+ $142 32. Ke1 Qf1+ 33. Kd2 Qd3+ 34. Ke1 Rf1#) 32. Qe1 {[%emt 0:00:08]} Qxc4 {[%emt 0:00:11]} 33. Bf4 {[%emt 0:00:16]} Bb4 {[%emt 0:00:58]} 34. Qe2 {[%emt 0:00:13]} Qxe2+ $2 {[%emt 0:00:31]} (34... Qd5+ 35. Kc2 Qc5+ 36. Kb3 Rb8) 35. Kxe2 {[%emt 0:00:02][%mdl 4096] Endgame KRB-KRB} Rh8 {[%emt 0:00:10]} 36. Ke3 {[%emt 0:01:13]} Rh2 {[%emt 0:00:40]} 37. Rb1 {[%emt 0:00:09]} Bd6 {[%emt 0:02:27]} 38. Kxe4 {[%emt 0:00:07]} Bxf4 {[%emt 0:00:13]} 39. gxf4 {[%emt 0:00:09] KR-KR} c5 {[%emt 0:00:52]} 40. a3 {[%emt 0:00:30]} g6 {[%emt 0:00:29]} 41. Rc1 {[%emt 0:01:29]} (41. b4 $142) 41... Rxb2 {[%emt 0:00:15]} (41... Re2+ $19 42. Kd3 Rxb2 43. Rxc5 Rb3+ 44. Ke4 Rxa3) 42. Rxc5 $17 {[%emt 0:00:01]} a6 {[%emt 0:01:06]} 43. Ra5 {[%emt 0:00:50]} Rb6 {[%emt 0:00:06]} 44. Rg5 {[%emt 0:00:03]} Rb3 {[%emt 0:00:22]} (44... Rb5 $17 {( -> ...Rxg5)} 45. Rxg6 Ra5) 45. Ra5 $11 {[%emt 0:00:08]} Rb6 {[%emt 0:01:06]} ({Black should try} 45... Rb5 $11 46. Rxa6 Rb1) 46. Rg5 $17 {[%emt 0:00:02]} Rd6 {[%emt 0:00:42]} 47. Rxg6 {[%emt 0:00:08]} c5 {[%emt 0:00:12]} 48. Rg7+ {[%emt 0:01:49]} Kc6 {[%emt 0:00:06]} 49. Ke5 {[%emt 0:00:04] [#]} Rd4 {[%emt 0:00:34]} (49... c4 $1 $17 {[%cal Rc4c3] White must now prevent ...c3.} 50. Rg1 Kc5) 50. Re7 $11 {[%emt 0:01:40]} Rd5+ {[%emt 0:01:04]} 51. Kxe6 {[%emt 0:00:06][%cal Oe7c7] aiming for Rc7+!} Rd6+ {[%emt 0:00:03]} 52. Ke5 {[%emt 0:00:21]} Rd5+ {[%emt 0:00:12]} 53. Ke4 {[%emt 0:00:43][%cal Oe7c7] Strongly threatening Rc7+!} Rd4+ {[%emt 0:00:07]} 54. Kf3 {[%emt 0:00:04]} Kd6 {[%emt 0:00:54]} 55. Re3 {[%emt 0:00:08]} c4 {[%emt 0:01:10]} 56. f5 {[%emt 0:02:55]} Kc5 {[%emt 0:00:34]} 57. f6 {[%emt 0:00:55] White threatens f7 and mate.} Rd1 {[%emt 0:00:34]} 58. Ke2 {[%emt 0:00:18] Inhibits Rf1.} Rd7 {[%emt 0:00:14]} 59. Re7 {[%emt 0:00:27]} Rd6 {[%emt 0:00:17]} 60. Re5+ {[%emt 0:00:33]} Kb6 {[%emt 0:00:56]} 61. Rf5 {[%emt 0:00:36] White wants to mate with f7.} c3 $2 {[%emt 0:00:16][%mdl 8192]} (61... Rd8 $11) 62. f7 {[%emt 0:00:01]} c2 {[%emt 0:00:47]} 63. f8=Q {[%emt 0:00:07] What a bad dream for Black.  Weighted Error Value: White=0.63/Black=0.59} 1-0

[Event "67th Mexican-ch Open 2022"]
[Site "Chihuahua"]
[Date "2022.04.14"]
[Round "2.26"]
[White "Flores Rodriguez, Astrid Aphril"]
[Black "Ancheyta Tejas, Claudinelly"]
[Result "1-0"]
[ECO "B01"]
[WhiteElo "1662"]
[BlackElo "1789"]
[Annotator "NA RC"]
[PlyCount "119"]
[EventDate "2022.04.12"]
[EventType "swiss"]
[EventCountry "MEX"]
[SourceTitle "playchess.com"]
[Source "ChessBase"]
[SourceQuality "1"]
[TimeControl "5400+30"]

1. e4 {[%emt 0:00:08]} d5 {[%emt 0:00:07]} 2. exd5 {[%emt 0:00:26]} Qxd5 {[%emt 0:00:07]} 3. Nc3 {[%emt 0:00:08]} Qa5 {[%emt 0:00:09]} 4. g3 {[%emt 0:00:33]} Nf6 {[%emt 0:01:05]} 5. Bg2 {[%emt 0:00:13]} Bg4 {[%emt 0:03:42]} 6. Nge2 {[%emt 0:01:51]} Nc6 {[%emt 0:01:51]} 7. h3 {[%emt 0:01:51]} Bh5 {[%emt 0:01:18]} 8. O-O {[%emt 0:01:40]} e5 {[%emt 0:07:11]} 9. d3 {[%emt 0:02:31]} Bb4 {[%emt 0:22:55]} 10. g4 {[%emt 0:12:54]} Bg6 {[%emt 0:01:14]} 11. Be3 {[%emt 0:04:16]} O-O {[%emt 0:03:26]} 12. a3 {[%emt 0:02:40]} Bxc3 {[%emt 0:01:03]} 13. Nxc3 {[%emt 0:02:35]} Qa6 {[%emt 0:11:25]} 14. f4 {[%emt 0:09:04]} exf4 {[%emt 0:00:26]} 15. Rxf4 {[%emt 0:01:00]} Ne5 {[%emt 0:02:49]} 16. Qd2 {[%emt 0:03:26]} Rfe8 {[%emt 0:08:33]} 17. Raf1 {[%emt 0:13:09]} Rad8 {[%emt 0:00:34]} 18. Qf2 {[%emt 0:03:59]} Qe6 {[%emt 0:10:02]} 19. Bd2 {[%emt 0:02:29]} a6 {[%emt 0:05:53]} 20. Re1 {[%emt 0:06:42]} Qd6 {[%emt 0:03:21]} 21. Ne4 {[%emt 0:07:48]} Nxe4 {[%emt 0:01:21]} 22. Bxe4 {[%emt 0:00:16]} Bxe4 {[%emt 0:00:55]} 23. Rfxe4 {[%emt 0:01:01]} c5 {[%emt 0:02:41]} 24. Bc3 {[%emt 0:08:39]} f6 {[%emt 0:00:09]} 25. Qf4 {[%emt 0:01:01]} g5 {[%emt 0:06:43]} 26. Qf5 {[%emt 0:02:28]} h6 {[%emt 0:01:46]} 27. Bxe5 {[%emt 0:01:09]} fxe5 {[%emt 0:00:09]} 28. Rxe5 {[%emt 0:00:50]} Rf8 {[%emt 0:01:29]} 29. Qe6+ {[%emt 0:01:09]} Qxe6 {[%emt 0:00:18]} 30. Rxe6 {[%emt 0:00:08]} Kg7 {[%emt 0:00:18]} 31. Rf1 {[%emt 0:02:50]} Rfe8 {[%emt 0:01:31]} 32. Rfe1 {[%emt 0:00:18]} Rf8 {[%emt 0:00:14]} 33. Re7+ {[%emt 0:00:19]} Rf7 {[%emt 0:00:08]} 34. Rxf7+ {[%emt 0:00:51]} Kxf7 {[%emt 0:00:08]} 35. Re4 {[%emt 0:01:24]} Rd6 {[%emt 0:01:16]} 36. Kf2 {[%emt 0:02:53]} Rf6+ {[%emt 0:00:50]} 37. Ke2 {[%emt 0:00:56]} Rb6 {[%emt 0:00:27]} 38. b3 {[%emt 0:00:35]} Rd6 {[%emt 0:00:20]} 39. Re5 {[%emt 0:00:44]} b6 {[%emt 0:00:08]} 40. c3 {[%emt 0:00:51]} Kf6 {[%emt 0:00:44]} 41. Rf5+ {[%emt 0:00:30]} Kg6 {[%emt 0:00:06]} 42. Re5 {[%emt 0:00:41]} Kf6 {[%emt 0:01:05]} 43. Re4 {[%emt 0:00:06]} Kf7 {[%emt 0:00:17]} 44. d4 {[%emt 0:00:52]} cxd4 {[%emt 0:00:09]} 45. cxd4 {[%emt 0:00:05]} Re6 {[%emt 0:00:36]} 46. Kd3 {[%emt 0:00:48]} Rxe4 {[%emt 0:00:26]} 47. Kxe4 {[%emt 0:00:06]} Ke6 {[%emt 0:00:03]} 48. d5+ {[%emt 0:00:38]} Kd6 {[%emt 0:00:06]} 49. Kd4 {[%emt 0:00:12]} a5 {[%emt 0:00:59]} 50. b4 {[%emt 0:02:54]} a4 {[%emt 0:00:38]} 51. Kc4 {[%emt 0:00:35]} Ke5 {[%emt 0:01:38]} 52. Kb5 {[%emt 0:00:16]} Kxd5 {[%emt 0:00:13]} 53. Kxb6 {[%emt 0:00:07]} Kc4 {[%emt 0:00:07]} 54. Kc6 {[%emt 0:00:19]} Kb3 {[%emt 0:00:38]} 55. b5 {[%emt 0:00:06]} Kxa3 {[%emt 0:00:04]} 56. b6 {[%emt 0:00:04]} Kb2 {[%emt 0:02:05]} 57. b7 {[%emt 0:00:08]} a3 {[%emt 0:00:16]} 58. b8=Q+ {[%emt 0:00:07]} Kc3 {[%emt 0:00:09]} 59. Qh8+ {[%emt 0:00:40]} Kc2 {[%emt 0:00:09]} 60. Qa1 {[%emt 0:00:34]} 1-0

[Event "67th Mexican-ch Open 2022"]
[Site "Chihuahua"]
[Date "2022.04.14"]
[Round "2.27"]
[White "Real Pereyra, Diana Carime"]
[Black "Ortega Beltran, Ximena"]
[Result "0-1"]
[ECO "B70"]
[WhiteElo "2049"]
[BlackElo "1725"]
[Annotator "TA"]
[PlyCount "86"]
[EventDate "2022.04.12"]
[EventType "swiss"]
[EventCountry "MEX"]
[SourceTitle "playchess.com"]
[Source "ChessBase"]
[SourceQuality "1"]
[TimeControl "5400+30"]

{[%evp 16,86,9,-4,8,-20,21,17,26,0,6,6,43,30,31,20,65,52,50,52,43,45,52,52,51,56,53,42,44,19,57,36,57,60,56,38,57,34,50,48,61,56,65,63,60,26,19,25,63,56,72,48,58,43,54,38,38,0,0,0,0,0,133,0,0,-216,0,-120,-82,-29996,-29997,-29997,-29998]} 1. e4 {[%emt 0:00:09]} c5 {[%emt 0:00:41]} 2. Nc3 {[%emt 0:00:20]} g6 {[%emt 0:00:46]} 3. Nf3 {[%emt 0:01:19]} Bg7 {[%emt 0:00:39]} 4. Bc4 {[%emt 0:00:58]} Nc6 {[%emt 0:00:49]} 5. O-O {[%emt 0:00:40]} d6 {[%emt 0:05:39]} 6. h3 {[%emt 0:00:20]} Nf6 {[%emt 0:00:32]} 7. d4 {[%emt 0:01:34]} cxd4 {[%emt 0:03:17]} 8. Nxd4 {[%emt 0:06:59]} O-O {[%emt 0:03:02]} 9. Nf3 {[%emt 0:00:06] Recently 9.Re1 got a lot of attention.} a6 {[%emt 0:00:41] B70: Sicilian Dragon: 6 g3 and 6 Be2 (without a later Be3).} 10. Re1 {[%emt 0:00:55]} Bd7 {[%emt 0:04:57]} 11. Bb3 {[%emt 0:00:47]} Na5 {[%emt 0:02:27] The position is equal.} 12. Nd5 {[%emt 0:00:28]} Nxb3 {[%emt 0:02:25]} 13. axb3 {[%emt 0:00:10]} Rc8 {[%emt 0:03:42]} 14. c3 {[%emt 0:00:25]} Bc6 {[%emt 0:01:29]} 15. Bg5 {[%emt 0:02:08] [#]} e5 $146 {[%emt 0:04:07]} ({Predecessor:} 15... Bxd5 16. exd5 h6 17. Bf4 Re8 18. Qd2 Kh7 19. Rad1 b5 20. Re2 Qb6 21. Rde1 Qb7 {1-0 (38) Salazar Gould,M (1968)-Quezada Pauker,K (1498) Tornelo INT 2020}) 16. Qd2 {[%emt 0:04:48]} Bxd5 {[%emt 0:09:34]} 17. Bxf6 {[%emt 0:05:51]} Bxf6 {[%emt 0:00:17]} 18. Qxd5 {[%emt 0:00:06]} Qb6 {[%emt 0:00:16]} 19. Red1 {[%emt 0:01:44]} Be7 {[%emt 0:08:45]} 20. b4 {[%emt 0:12:25] Against Rc5} Kg7 {[%emt 0:04:58]} 21. Rd2 {[%emt 0:12:11]} f5 {[%emt 0:12:30]} 22. Re1 {[%emt 0:11:41]} Rce8 {[%emt 0:08:46]} 23. Rde2 {[%emt 0:11:59]} fxe4 {[%emt 0:06:51]} 24. Rxe4 {[%emt 0:00:43]} Rf7 {[%emt 0:00:55]} 25. R1e2 {[%emt 0:12:29]} Ref8 {[%emt 0:00:23]} 26. Qd2 {[%emt 0:01:34]} Qc6 {[%emt 0:03:44] [#]} 27. Nd4 $1 {[%emt 0:05:26]} Qc8 {[%emt 0:02:04]} (27... Qd7 28. Nc2) 28. Nc2 {[%emt 0:01:21]} Qd8 {[%emt 0:03:33]} 29. Qd1 {[%emt 0:04:41]} Bh4 {[%emt 0:00:48][%cal Rh4f2]} 30. g3 {[%emt 0:00:16]} Bg5 {[%emt 0:01:50]} 31. h4 {[%emt 0:00:02]} Be7 {[%emt 0:02:53]} 32. Ne3 {[%emt 0:00:04]} Qb6 {[%emt 0:00:34]} 33. Qd2 {[%emt 0:00:46]} Qc6 {[%emt 0:00:48]} 34. Nd5 {[%emt 0:00:15]} (34. Ng4 b5 $11) 34... Bd8 {[%emt 0:00:02]} 35. b3 {[%emt 0:00:22]} Rf3 {[%emt 0:01:22]} 36. Kg2 {[%emt 0:00:16]} Qd7 {[%emt 0:00:26]} 37. Ne3 {[%emt 0:01:45][%cal Oe4e5] Prevents Qf5.} Qf7 {[%emt 0:00:23]} 38. c4 {[%emt 0:00:27]} Bb6 {[%emt 0:00:38]} (38... Rxg3+ $11 39. fxg3 Qf3+ 40. Kh2 Qxe4) 39. Kg1 {[%emt 0:00:55]} (39. Qxd6 $2 Rxf2+ 40. Rxf2 Qxf2+ 41. Kh3 Bd4 $19) (39. c5 $1 $16 {[%cal Rc5b6]} dxc5 40. Rxe5 cxb4 41. Re7 Rxf2+ 42. Kh3 Qxe7 43. Nf5+ $1 {[%mdl 512]} R8xf5 44. Rxe7+ Rf7 45. Qxb4 Rxe7 46. Qxe7+ Rf7 47. Qe5+ Kg8 48. h5 gxh5 49. Qg5+ (49. Qxh5 Bd8 $16) 49... Kh8 50. Qxh5) 39... Bd4 $11 {[%emt 0:00:39]} 40. Kg2 $2 {[%emt 0:00:07] [#]} (40. Rxd4 $11 exd4 41. Ng4) 40... Qd7 $2 {[%emt 0:00:56]} ({Worse is} 40... Rxg3+ 41. fxg3 Qf3+ 42. Kh2 Qxe4 43. Nc2 Qxe2+ 44. Qxe2) (40... Bc3 $1 $19 {[%mdl 512]} 41. Qc2 {[#]} (41. Qxc3 $2 Rxf2+ 42. Rxf2 Qxf2+ 43. Kh1 Qf3+ 44. Kh2 Qxe4 $19) 41... Be1 $1 {[%mdl 512]}) 41. Nd1 {[%emt 0:00:40]} (41. Rxd4 $11 {keeps the balance.} exd4 42. Qxd4+ Kg8 43. Ng4) 41... Qc6 {[%emt 0:00:37] &Nero is much more active.} 42. Rxd4 $4 {[%emt 0:00:42][%mdl 8192]} (42. Kh2 $17) 42... Rxf2+ $1 {[%emt 0:00:48]} ({Inferior is} 42... exd4 43. Qxd4+ Kg8 44. Kh2 $17) 43. Kh3 {[%emt 0:00:31]} Qg2+ {[%emt 0:00:01] Weighted Error Value: White=0.48/Black=0.23 (precise)} 0-1

[Event "67th Mexican-ch Open 2022"]
[Site "Chihuahua"]
[Date "2022.04.14"]
[Round "3.1"]
[White "Mareco, Sandro"]
[Black "Galaviz Medina, Sion Radamantys"]
[Result "1/2-1/2"]
[ECO "B51"]
[WhiteElo "2643"]
[BlackElo "2374"]
[Annotator "TA"]
[PlyCount "55"]
[EventDate "2022.04.12"]
[EventType "swiss"]
[EventCountry "MEX"]
[SourceTitle "playchess.com"]
[Source "ChessBase"]
[SourceQuality "1"]
[TimeControl "5400+30"]

{[%evp 9,55,3,17,0,0,3,18,16,23,12,29,22,33,27,23,27,29,30,36,31,64,9,58,3,43,0,0,-13,21,0,0,-10,14,0,0,0,52,0,7,0,126,136,120,120,112,120,136,-693]} 1. e4 {[%emt 0:00:02]} c5 {[%emt 0:00:13]} 2. Nf3 {[%emt 0:00:04]} d6 {[%emt 0:00:04]} 3. Bb5+ {[%emt 0:00:04]} Nd7 {[%emt 0:00:08]} 4. a4 {[%emt 0:00:05]} Ngf6 {[%emt 0:05:43]} 5. Nc3 {[%emt 0:00:07]} a6 {[%emt 0:01:40]} 6. Be2 {[%emt 0:00:06] B51: Sicilian: Moscow Variation (3 Bb5+) without 3...Bd7.} e6 {[%emt 0:00:48]} 7. O-O {[%emt 0:00:18]} Be7 {[%emt 0:00:08]} 8. d4 {[%emt 0:00:08] The position is equal.} cxd4 {[%emt 0:00:28]} 9. Qxd4 {[%emt 0:00:06]} O-O {[%emt 0:00:45]} 10. a5 {[%emt 0:03:33] [#]} Nb8 $146 {[%emt 0:16:13][%cal Bd7b8,Bb8c6,Bc6e5][%mdl 32]} ({Predecessor:} 10... e5 11. Qe3 b6 12. axb6 Nxb6 13. Bd3 Bb7 14. Qe2 Nfd7 15. Rxa6 Bxa6 16. Bxa6 Nc5 {0-1 (42) Hammer,J (2635)-Solodovnichenko,Y (2572) Sweden 2019}) 11. Rd1 {[%emt 0:07:32]} Nc6 {[%emt 0:03:49][%csl LRa5,LRd4]} 12. Qa4 {[%emt 0:00:08][%cal Oe4e5]} Bd7 {[%emt 0:00:47]} 13. Be3 {[%emt 0:06:17]} Qb8 {[%emt 0:05:05]} 14. Qb3 {[%emt 0:01:13]} Rc8 {[%emt 0:00:46]} 15. h3 {[%emt 0:03:18] &Bianco is much more active.} (15. Nd2 $14) 15... h6 {[%emt 0:07:58]} (15... Bd8 $11 {is superior.}) 16. Bb6 {[%emt 0:12:56]} (16. Nd2 $1 $14) 16... Ne5 {[%emt 0:06:20]} 17. Nd2 {[%emt 0:14:43]} Bc6 {[%emt 0:09:51]} 18. Be3 {[%emt 0:00:31]} Ned7 {[%emt 0:08:20]} 19. Bf3 {[%emt 0:00:25]} Ne5 {[%emt 0:00:34]} 20. Be2 {[%emt 0:00:13]} Ned7 {[%emt 0:00:18]} 21. Bf3 {[%emt 0:07:40]} Ne5 {[%emt 0:00:21]} 22. Be2 {[%emt 0:42:01]} Bd7 ({Black should try} 22... d5 $11) 23. Nf3 {[%emt 0:00:30]} Nc6 24. Nd2 d5 {[%emt 0:32:11] Against Nc4} (24... Ne5 $11) 25. exd5 $16 exd5 26. Nxd5 Nxd5 27. Qxd5 Be6 28. Qb3 $2 {[%mdl 40960] Weighted Error Value: White=0.17 (very precise) /Black=0.25 (precise) . An unexpected result.} 1/2-1/2

[Event "67th Mexican-ch Open 2022"]
[Site "Chihuahua"]
[Date "2022.04.14"]
[Round "3.2"]
[White "Diaz Rosas, Julio Cesar"]
[Black "Hernandez Guerrero, Gilberto"]
[Result "1/2-1/2"]
[ECO "B46"]
[WhiteElo "2393"]
[BlackElo "2564"]
[Annotator "TA"]
[PlyCount "61"]
[EventDate "2022.04.12"]
[EventType "swiss"]
[EventCountry "MEX"]
[SourceTitle "playchess.com"]
[Source "ChessBase"]
[SourceQuality "1"]
[TimeControl "5400+30"]

{[%evp 11,61,21,14,0,0,0,44,44,39,32,37,42,51,53,39,49,49,50,44,51,56,14,17,0,0,0,0,0,0,0,0,0,0,0,0,0,0,0,0,-7,0,0,0,0,0,0,0,0,328,-29987,0,-16]} 1. e4 {[%emt 0:00:11] Ribli,Z} c5 {[%emt 0:00:23]} 2. Nf3 {[%emt 0:00:09]} e6 {[%emt 0:01:50]} 3. d4 {[%emt 0:00:08]} cxd4 {[%emt 0:00:07]} 4. Nxd4 {[%emt 0:00:04]} Nc6 {[%emt 0:00:10]} 5. Nc3 {[%emt 0:00:07]} a6 {[%emt 0:00:25]} 6. Be3 {[%emt 0:00:08]} Nf6 {[%emt 0:00:26]} 7. g4 {[%emt 0:00:08][%cal Bg2g4,Bg4g5][%mdl 32] B46: Sicilian: Taimanov: 5 Nc3 a6.} Bb4 {[%emt 0:04:00]} 8. Bg2 {[%emt 0:00:17]} d5 {[%emt 0:03:45]} 9. Nxc6 {[%emt 0:08:39] White is slightly better.} bxc6 {[%emt 0:00:46]} 10. g5 {[%emt 0:00:09]} Nxe4 {[%emt 0:15:39]} 11. Bxe4 {[%emt 0:00:23]} Bxc3+ {[%emt 0:00:50]} 12. bxc3 {[%emt 0:00:09][%cal Od1d4] [#] Strongly threatening Qd4!} dxe4 {[%emt 0:00:03]} 13. Qxd8+ {[%emt 0:00:12]} Kxd8 {[%emt 0:00:06]} 14. O-O-O+ {[%emt 0:00:13] [#]} Ke8 $146 {[%emt 0:03:44]} ({Predecessor:} 14... Kc7 15. Bf4+ Kb7 16. Be5 f6 17. gxf6 gxf6 18. Bxf6 Rf8 19. Be5 Rf5 20. Bg3 Ra5 {1-0 (49) Hector,J (2553)-Hansen,C (2610) Malmo 2003 CBM 095 [Ribli,Z]}) 15. Rd6 {[%emt 0:11:46][%mdl 1024] Rhd1 is the strong threat. White has compensation.} e5 {[%emt 0:00:29]} 16. Rhd1 {[%emt 0:02:43] [#] aiming for Rd8+.} Bg4 {[%emt 0:01:46]} 17. R1d2 {[%emt 0:00:04]} Rc8 {[%emt 0:00:46]} 18. Kb2 {[%emt 0:16:06]} Ke7 {[%emt 0:14:43]} 19. Bc5 {[%emt 0:03:05][%cal Oh2h3] And now h3! would win.} Ke8 {[%emt 0:00:06]} ({Much less strong is} 19... Rb8+ 20. Kc1 Ke8 21. Rxc6 $16) 20. c4 {[%emt 0:16:24]} h6 {[%emt 0:03:02]} 21. gxh6 {[%emt 0:08:20]} Rxh6 {[%emt 0:01:54]} 22. Rxh6 {[%emt 0:00:16]} gxh6 $11 {[%emt 0:00:06][%mdl 4096] Endgame KRB-KRB} 23. Rd6 {[%emt 0:00:05]} Be6 {[%emt 0:05:31]} 24. Kc3 {[%emt 0:00:15]} h5 {[%emt 0:00:11]} 25. h4 {[%emt 0:02:55]} Rc7 {[%emt 0:42:12]} 26. a4 {[%emt 0:30:34]} Ke7 27. Rxc6+ {[%emt 0:00:30]} Kd7 28. Rd6+ {[%emt 0:00:30]} Ke8 {[%emt 0:01:30]} 29. Kb4 Ke7 $2 {[%mdl 8192]} (29... a5+ $11 {and Black has nothing to worry.} 30. Kb5 Rc8) 30. Ka5 $4 {[%emt 0:01:00][%mdl 8192]} Kf6 $2 (30... Rxc5+ {mates} 31. Kb4 Rxc4+ 32. Ka3 Kxd6 33. Kb3 f5 34. c3 f4 35. Kc2 Rxa4 36. c4 Bxc4 37. Kc3 Kc5 38. Kb2 Ra2+ 39. Kc1 Rxf2 40. Kb1 Kb4 41. Ka1 Kb3 42. Kb1 Rf1#) 31. Kb6 {Weighted Error Value: White=0.39/Black=0.55} 1/2-1/2